[Event "Live Chess"]
[Site "Chess.com"]
[Date "2023.05.21"]
[Round "-"]
[White "WelshTiger"]
[Black "CheckThis4"]
[Result "0-1"]
[WhiteElo "2326"]
[BlackElo "2501"]
[TimeControl "300"]
[EndTime "3:53:11 PDT"]
[Termination "CheckThis4 won on time"]

1. e4 {[%clk 0:04:58.6]} 1... e6 {[%clk 0:04:57.4]} 2. Nf3 {[%clk 0:04:55.9]}
2... d5 {[%clk 0:04:57.3]} 3. e5 {[%clk 0:04:55.4]} 3... c5 {[%clk 0:04:56.1]}
4. b4 {[%clk 0:04:54.6]} 4... Nd7 {[%clk 0:04:40.2]} 5. bxc5 {[%clk 0:04:43.4]}
5... Nxc5 {[%clk 0:04:38.9]} 6. d4 {[%clk 0:04:42.2]} 6... Ne4 {[%clk 0:04:38]}
7. Bd3 {[%clk 0:04:40.5]} 7... Bd7 {[%clk 0:04:35.6]} 8. O-O {[%clk 0:04:39.3]}
8... Rc8 {[%clk 0:04:33.7]} 9. c4 {[%clk 0:04:36.2]} 9... Bc6 {[%clk 0:04:31]}
10. c5 {[%clk 0:04:33]} 10... f5 {[%clk 0:04:27.3]} 11. exf6 {[%clk 0:04:29.5]}
11... Ngxf6 {[%clk 0:04:25.9]} 12. Ne5 {[%clk 0:04:23.4]} 12... Qc7 {[%clk
0:04:19]} 13. Bf4 {[%clk 0:04:16.6]} 13... g5 {[%clk 0:04:12.7]} 14. Bxe4 {[%clk
0:04:06]} 14... gxf4 {[%clk 0:04:11]} 15. Bf3 {[%clk 0:03:58.6]} 15... Rg8
{[%clk 0:03:58.7]} 16. Bh5+ {[%clk 0:03:53.8]} 16... Ke7 {[%clk 0:03:41.1]} 17.
Bf3 {[%clk 0:03:13.7]} 17... Bh6 {[%clk 0:03:37.8]} 18. Nc3 {[%clk 0:03:10]}
18... Rg5 {[%clk 0:03:32.8]} 19. Re1 {[%clk 0:03:08]} 19... Rcg8 {[%clk
0:03:30.8]} 20. Kh1 {[%clk 0:03:00.9]} 20... Kd8 {[%clk 0:03:07.3]} 21. Rb1
{[%clk 0:02:59.7]} 21... Kc8 {[%clk 0:03:05.9]} 22. Nb5 {[%clk 0:02:45.3]} 22...
Bxb5 {[%clk 0:03:04.3]} 23. Rxb5 {[%clk 0:02:43.7]} 23... Nd7 {[%clk 0:03:03.3]}
24. Nxd7 {[%clk 0:02:38.1]} 24... Qxd7 {[%clk 0:03:01.3]} 25. Qb3 {[%clk
0:02:34.9]} 25... R5g7 {[%clk 0:02:56.4]} 26. Rc1 {[%clk 0:02:27.1]} 26... Qc6
{[%clk 0:02:54.3]} 27. a4 {[%clk 0:02:25.9]} 27... Bg5 {[%clk 0:02:47.7]} 28. a5
{[%clk 0:02:18]} 28... Bd8 {[%clk 0:02:44.7]} 29. a6 {[%clk 0:02:16.9]} 29...
Qxa6 {[%clk 0:02:40.2]} 30. c6 {[%clk 0:02:16]} 30... Kb8 {[%clk 0:02:11.8]} 31.
cxb7 {[%clk 0:01:55]} 31... Rc7 {[%clk 0:02:06.6]} 32. Rxc7 {[%clk 0:01:48.2]}
32... Qa1+ {[%clk 0:02:02.8]} 33. Bd1 {[%clk 0:01:44.3]} 33... Bxc7 {[%clk
0:01:59.9]} 34. Qd3 {[%clk 0:01:26.8]} 34... e5 {[%clk 0:01:47.7]} 35. Rxd5
{[%clk 0:01:14]} 35... e4 {[%clk 0:01:42.8]} 36. Qc2 {[%clk 0:01:01.2]} 36... f3
{[%clk 0:01:30.4]} 37. g3 {[%clk 0:00:58.2]} 37... e3 {[%clk 0:01:12.5]} 38.
fxe3 {[%clk 0:00:55.6]} 38... Rf8 {[%clk 0:01:08]} 39. Kg1 {[%clk 0:00:51.9]}
39... f2+ {[%clk 0:01:04.9]} 40. Kf1 {[%clk 0:00:51.2]} 40... Qa6+ {[%clk
0:01:01]} 41. Be2 {[%clk 0:00:45.8]} 41... Qe6 {[%clk 0:00:53.1]} 42. Rh5 {[%clk
0:00:27.9]} 42... h6 {[%clk 0:00:41.7]} 43. Qd3 {[%clk 0:00:19.4]} 43... Qc6
{[%clk 0:00:32.3]} 44. e4 {[%clk 0:00:17.6]} 44... Qc1+ {[%clk 0:00:30.5]} 45.
Qd1 {[%clk 0:00:17.1]} 45... Qe3 {[%clk 0:00:27.5]} 46. Qd3 {[%clk 0:00:15.7]}
46... Qc1+ {[%clk 0:00:22.8]} 47. Qd1 {[%clk 0:00:15.6]} 47... Qc6 {[%clk
0:00:21.1]} 48. d5 {[%clk 0:00:14.6]} 48... Qc3 {[%clk 0:00:13.8]} 49. d6 {[%clk
0:00:12.8]} 49... Ba5 {[%clk 0:00:12.9]} 50. d7 {[%clk 0:00:11.5]} 50... Qe1+
{[%clk 0:00:11.8]} 51. Kg2 {[%clk 0:00:10.6]} 51... Qxd1 {[%clk 0:00:10.5]} 52.
Bf1 {[%clk 0:00:08.2]} 52... Qxh5 {[%clk 0:00:08.1]} 53. h3 {[%clk 0:00:05.7]}
53... Qf3+ {[%clk 0:00:07.1]} 54. Kh2 {[%clk 0:00:04.7]} 54... Bc7 {[%clk
0:00:06.8]} 0-1

[Event "Live Chess"]
[Site "Chess.com"]
[Date "2023.05.21"]
[Round "-"]
[White "gmnorfolk"]
[Black "Greenbecker"]
[Result "1-0"]
[WhiteElo "2105"]
[BlackElo "1649"]
[TimeControl "300"]
[EndTime "3:53:11 PDT"]
[Termination "gmnorfolk won by resignation"]

1. d4 {[%clk 0:04:58.1]} 1... d5 {[%clk 0:04:57.9]} 2. c4 {[%clk 0:04:56.3]}
2... e6 {[%clk 0:04:52.6]} 3. Nc3 {[%clk 0:04:54.8]} 3... Nf6 {[%clk 0:04:50.5]}
4. cxd5 {[%clk 0:04:51.5]} 4... Nxd5 {[%clk 0:04:48.9]} 5. e4 {[%clk 0:04:49.7]}
5... Nxc3 {[%clk 0:04:47.5]} 6. bxc3 {[%clk 0:04:49.4]} 6... c5 {[%clk
0:04:46.2]} 7. Rb1 {[%clk 0:04:48.1]} 7... cxd4 {[%clk 0:04:44.2]} 8. cxd4
{[%clk 0:04:47.4]} 8... Qa5+ {[%clk 0:04:41]} 9. Qd2 {[%clk 0:04:43.7]} 9...
Qxd2+ {[%clk 0:04:36.6]} 10. Bxd2 {[%clk 0:04:43.6]} 10... Nc6 {[%clk
0:04:34.5]} 11. Nf3 {[%clk 0:04:39.2]} 11... Be7 {[%clk 0:04:32.5]} 12. Bb5
{[%clk 0:04:33.5]} 12... Bd7 {[%clk 0:04:30.4]} 13. O-O {[%clk 0:04:22.4]} 13...
a6 {[%clk 0:04:26.3]} 14. Ba4 {[%clk 0:04:20.2]} 14... b5 {[%clk 0:04:24.6]} 15.
Bb3 {[%clk 0:04:17]} 15... O-O {[%clk 0:04:22.5]} 16. Rfe1 {[%clk 0:04:14.1]}
16... Rfe8 {[%clk 0:04:12.4]} 17. d5 {[%clk 0:04:10.3]} 17... exd5 {[%clk
0:04:06.9]} 18. Bxd5 {[%clk 0:04:07.2]} 18... Rac8 {[%clk 0:03:56.9]} 19. Red1
{[%clk 0:03:59.6]} 19... Bg4 {[%clk 0:03:46.1]} 20. Rdc1 {[%clk 0:03:45.9]}
20... Bxf3 {[%clk 0:03:31.3]} 21. gxf3 {[%clk 0:03:43.5]} 21... Red8 {[%clk
0:03:30.2]} 22. Kg2 {[%clk 0:03:37.3]} 22... Ne5 {[%clk 0:03:07.1]} 23. Ba5
{[%clk 0:03:32.5]} 23... Rxc1 {[%clk 0:03:00.5]} 24. Rxc1 {[%clk 0:03:29.9]}
24... Re8 {[%clk 0:02:41.7]} 25. f4 {[%clk 0:03:19.3]} 25... Nd3 {[%clk
0:02:36.1]} 26. Rc7 {[%clk 0:03:09.3]} 26... Nxf4+ {[%clk 0:02:20.1]} 27. Kf3
{[%clk 0:03:05.8]} 27... Nxd5 {[%clk 0:02:15.7]} 28. exd5 {[%clk 0:03:04.9]}
28... Bd6 {[%clk 0:02:01.9]} 29. Rc6 {[%clk 0:03:01.7]} 29... Bxh2 {[%clk
0:01:58.4]} 30. Rxa6 {[%clk 0:03:00.2]} 30... Bb8 {[%clk 0:01:38]} 31. Ra8
{[%clk 0:02:50.4]} 31... h6 {[%clk 0:01:21.8]} 32. Bc7 {[%clk 0:02:44.8]} 32...
Rc8 {[%clk 0:01:02.2]} 33. Rxb8 {[%clk 0:02:41.6]} 33... Rxb8 {[%clk 0:01:01.3]}
34. Bxb8 {[%clk 0:02:41.4]} 34... Kf8 {[%clk 0:01:00.3]} 35. Bd6+ {[%clk
0:02:36.2]} 35... Ke8 {[%clk 0:00:59.2]} 36. Bc5 {[%clk 0:02:35.5]} 36... Kd7
{[%clk 0:00:57.9]} 37. Bf8 {[%clk 0:02:34.1]} 1-0

[Event "Live Chess"]
[Site "Chess.com"]
[Date "2023.05.21"]
[Round "-"]
[White "MarkLim1"]
[Black "Tushinskiy"]
[Result "0-1"]
[WhiteElo "1700"]
[BlackElo "2189"]
[TimeControl "300"]
[EndTime "3:53:20 PDT"]
[Termination "Tushinskiy won by resignation"]

1. d4 {[%clk 0:04:59.5]} 1... e5 {[%clk 0:04:56]} 2. dxe5 {[%clk 0:04:58.3]}
2... d6 {[%clk 0:04:55.2]} 3. Nf3 {[%clk 0:04:56.2]} 3... Bg4 {[%clk 0:04:53.2]}
4. Bf4 {[%clk 0:04:50.3]} 4... d5 {[%clk 0:04:44.8]} 5. Nc3 {[%clk 0:04:46]}
5... c6 {[%clk 0:04:44]} 6. e3 {[%clk 0:04:43]} 6... Qb6 {[%clk 0:04:39.5]} 7.
Qd2 {[%clk 0:04:38.3]} 7... Nd7 {[%clk 0:04:37.7]} 8. Rb1 {[%clk 0:04:36.7]}
8... Ne7 {[%clk 0:04:34]} 9. Bg3 {[%clk 0:04:30.1]} 9... Ng6 {[%clk 0:04:32]}
10. h3 {[%clk 0:04:25]} 10... Bxf3 {[%clk 0:04:30.6]} 11. gxf3 {[%clk
0:04:24.3]} 11... Ngxe5 {[%clk 0:04:29.9]} 12. f4 {[%clk 0:04:21]} 12... Nf3+
{[%clk 0:04:28.3]} 0-1

[Event "Live Chess"]
[Site "Chess.com"]
[Date "2023.05.21"]
[Round "-"]
[White "Woodpusher500"]
[Black "RoaringKnights"]
[Result "0-1"]
[WhiteElo "1003"]
[BlackElo "1089"]
[TimeControl "300"]
[EndTime "3:53:35 PDT"]
[Termination "RoaringKnights won by resignation"]

1. e4 {[%clk 0:04:56.5]} 1... c6 {[%clk 0:04:57.8]} 2. Nf3 {[%clk 0:04:53.2]}
2... d5 {[%clk 0:04:56.2]} 3. Nc3 {[%clk 0:04:51.8]} 3... Bg4 {[%clk 0:04:53.7]}
4. h3 {[%clk 0:04:38.7]} 4... Bh5 {[%clk 0:04:51.5]} 5. exd5 {[%clk 0:04:25.6]}
5... cxd5 {[%clk 0:04:49.9]} 6. Be2 {[%clk 0:04:19.7]} 6... Bxf3 {[%clk
0:04:45.6]} 7. Bxf3 {[%clk 0:04:16.3]} 7... e6 {[%clk 0:04:45]} 8. O-O {[%clk
0:04:09.3]} 8... Nc6 {[%clk 0:04:43.7]} 9. d4 {[%clk 0:03:57.6]} 9... Nf6 {[%clk
0:04:41]} 10. Re1 {[%clk 0:03:54.7]} 10... Bd6 {[%clk 0:04:39.4]} 11. Bg5 {[%clk
0:03:51.4]} 11... Be7 {[%clk 0:04:36.6]} 12. Qd2 {[%clk 0:03:32]} 12... h6
{[%clk 0:04:33.7]} 13. Bh4 {[%clk 0:03:28.5]} 13... Nd7 {[%clk 0:04:28.1]} 14.
Rad1 {[%clk 0:03:17.5]} 14... Bxh4 {[%clk 0:04:26.4]} 15. g3 {[%clk 0:03:11.7]}
15... Be7 {[%clk 0:04:22.8]} 16. Qf4 {[%clk 0:02:57.3]} 16... Bg5 {[%clk
0:04:15.5]} 17. Qg4 {[%clk 0:02:45.2]} 17... Nf6 {[%clk 0:04:09]} 18. Rxe6+
{[%clk 0:02:33.3]} 18... fxe6 {[%clk 0:04:03.1]} 19. Qxe6+ {[%clk 0:02:30.4]}
19... Qe7 {[%clk 0:04:01.6]} 20. Re1 {[%clk 0:02:21.3]} 20... Qxe6 {[%clk
0:04:00.3]} 21. Rxe6+ {[%clk 0:02:18.7]} 21... Kf7 {[%clk 0:03:59]} 22. Re3
{[%clk 0:02:14.2]} 22... Rhe8 {[%clk 0:03:54.1]} 0-1

[Event "Live Chess"]
[Site "Chess.com"]
[Date "2023.05.21"]
[Round "-"]
[White "LiamBellwood"]
[Black "EdenHazard8"]
[Result "0-1"]
[WhiteElo "1926"]
[BlackElo "1948"]
[TimeControl "300"]
[EndTime "3:53:45 PDT"]
[Termination "EdenHazard8 won by resignation"]

1. d4 {[%clk 0:04:59.3]} 1... Nf6 {[%clk 0:04:59]} 2. Nc3 {[%clk 0:04:59.2]}
2... g6 {[%clk 0:04:58.4]} 3. Bf4 {[%clk 0:04:58.8]} 3... Bg7 {[%clk 0:04:58.3]}
4. Qd2 {[%clk 0:04:58.3]} 4... d6 {[%clk 0:04:57.9]} 5. e4 {[%clk 0:04:56.5]}
5... Nbd7 {[%clk 0:04:55]} 6. f3 {[%clk 0:04:52.7]} 6... e5 {[%clk 0:04:54]} 7.
dxe5 {[%clk 0:04:52.1]} 7... dxe5 {[%clk 0:04:53.9]} 8. Be3 {[%clk 0:04:49.8]}
8... Qe7 {[%clk 0:04:52.2]} 9. O-O-O {[%clk 0:04:45.3]} 9... Nb6 {[%clk
0:04:50]} 10. Kb1 {[%clk 0:04:34]} 10... O-O {[%clk 0:04:48.2]} 11. Bh6 {[%clk
0:04:31.8]} 11... Be6 {[%clk 0:04:43.2]} 12. Bd3 {[%clk 0:04:26.4]} 12... Rad8
{[%clk 0:04:41.6]} 13. h4 {[%clk 0:04:25.5]} 13... Nc4 {[%clk 0:04:37.7]} 14.
Qg5 {[%clk 0:04:12.4]} 14... Qb4 {[%clk 0:04:31.8]} 15. Bxc4 {[%clk 0:04:11.8]}
15... Rxd1+ {[%clk 0:04:22.3]} 16. Nxd1 {[%clk 0:04:11.7]} 16... Qxc4 {[%clk
0:04:21.1]} 17. Bxg7 {[%clk 0:03:57.6]} 17... Kxg7 {[%clk 0:04:14.2]} 18. h5
{[%clk 0:03:44.7]} 18... Qxa2+ {[%clk 0:04:12.7]} 19. Kc1 {[%clk 0:03:43]} 19...
Qa1+ {[%clk 0:04:12.3]} 20. Kd2 {[%clk 0:03:42.5]} 20... Rd8+ {[%clk 0:04:12]}
21. Ke3 {[%clk 0:03:32.2]} 21... Qc1+ {[%clk 0:04:10.2]} 0-1

[Event "Live Chess"]
[Site "Chess.com"]
[Date "2023.05.21"]
[Round "-"]
[White "manthanit"]
[Black "AttackingSnowLeopard"]
[Result "0-1"]
[WhiteElo "1088"]
[BlackElo "2159"]
[TimeControl "300"]
[EndTime "3:54:09 PDT"]
[Termination "AttackingSnowLeopard won by resignation"]

1. e4 {[%clk 0:04:59.4]} 1... c6 {[%clk 0:04:58.3]} 2. Nf3 {[%clk 0:04:58.7]}
2... d5 {[%clk 0:04:57.9]} 3. exd5 {[%clk 0:04:57.3]} 3... cxd5 {[%clk
0:04:57.3]} 4. Nc3 {[%clk 0:04:56.9]} 4... Nc6 {[%clk 0:04:56.2]} 5. d4 {[%clk
0:04:55.9]} 5... Nf6 {[%clk 0:04:54.5]} 6. h3 {[%clk 0:04:55.1]} 6... Bf5 {[%clk
0:04:52.6]} 7. Bb5 {[%clk 0:04:46.8]} 7... e6 {[%clk 0:04:50.7]} 8. Bxc6+ {[%clk
0:04:45.9]} 8... bxc6 {[%clk 0:04:49.6]} 9. Ne5 {[%clk 0:04:42.6]} 9... Rc8
{[%clk 0:04:48.5]} 10. Bg5 {[%clk 0:04:38.2]} 10... Be7 {[%clk 0:04:46.3]} 11.
O-O {[%clk 0:04:36.7]} 11... h6 {[%clk 0:04:45.1]} 12. Bh4 {[%clk 0:04:35.8]}
12... O-O {[%clk 0:04:43.4]} 13. Ne2 {[%clk 0:04:33.8]} 13... Ne4 {[%clk
0:04:41.5]} 14. Bxe7 {[%clk 0:04:32.3]} 14... Qxe7 {[%clk 0:04:41.4]} 15. Ng3
{[%clk 0:04:30]} 15... Nxg3 {[%clk 0:04:38.8]} 16. fxg3 {[%clk 0:04:28.7]} 16...
f6 {[%clk 0:04:38.1]} 17. Rxf5 {[%clk 0:04:14.5]} 17... exf5 {[%clk 0:04:35.2]}
18. Ng6 {[%clk 0:04:13.4]} 18... Qe3+ {[%clk 0:04:34.1]} 19. Kh2 {[%clk
0:04:11.7]} 19... Rfe8 {[%clk 0:04:33.6]} 20. Qg4 {[%clk 0:03:58]} 20... fxg4
{[%clk 0:04:29.7]} 0-1

[Event "Live Chess"]
[Site "Chess.com"]
[Date "2023.05.21"]
[Round "-"]
[White "NAZRIZ1977"]
[Black "apl_trainer"]
[Result "1/2-1/2"]
[WhiteElo "1963"]
[BlackElo "1778"]
[TimeControl "300"]
[EndTime "3:54:15 PDT"]
[Termination "Game drawn - timeout vs insufficient material"]

1. c4 {[%clk 0:04:56.3]} 1... c5 {[%clk 0:04:57]} 2. g3 {[%clk 0:04:55.2]} 2...
Nc6 {[%clk 0:04:55.6]} 3. Bg2 {[%clk 0:04:15.9]} 3... g6 {[%clk 0:04:53.8]} 4.
Nf3 {[%clk 0:04:15.8]} 4... Bg7 {[%clk 0:04:52.2]} 5. O-O {[%clk 0:04:15.7]}
5... e5 {[%clk 0:04:51.2]} 6. Nc3 {[%clk 0:04:15.6]} 6... Nge7 {[%clk
0:04:50.1]} 7. d3 {[%clk 0:04:15.5]} 7... d6 {[%clk 0:04:49.1]} 8. Rb1 {[%clk
0:04:15.3]} 8... O-O {[%clk 0:04:47.4]} 9. a3 {[%clk 0:04:14.2]} 9... a5 {[%clk
0:04:46.4]} 10. Ne1 {[%clk 0:04:13]} 10... h6 {[%clk 0:04:43.4]} 11. Nc2 {[%clk
0:04:11.6]} 11... Rb8 {[%clk 0:04:41.1]} 12. b4 {[%clk 0:04:08.7]} 12... axb4
{[%clk 0:04:34]} 13. axb4 {[%clk 0:04:07.7]} 13... Nd4 {[%clk 0:04:33]} 14. bxc5
{[%clk 0:04:05.4]} 14... dxc5 {[%clk 0:04:31.4]} 15. e3 {[%clk 0:04:01.9]} 15...
Nxc2 {[%clk 0:04:26.5]} 16. Qxc2 {[%clk 0:04:01.8]} 16... Bf5 {[%clk 0:04:23.1]}
17. e4 {[%clk 0:04:00.5]} 17... Be6 {[%clk 0:04:18.3]} 18. Ba3 {[%clk
0:03:55.8]} 18... b6 {[%clk 0:04:16.2]} 19. Nd5 {[%clk 0:03:53.2]} 19... Nc6
{[%clk 0:04:12.7]} 20. Bb2 {[%clk 0:03:49.7]} 20... Nd4 {[%clk 0:04:09.3]} 21.
Bxd4 {[%clk 0:03:48.7]} 21... exd4 {[%clk 0:04:07.4]} 22. Rb5 {[%clk 0:03:46]}
22... f5 {[%clk 0:04:04.8]} 23. exf5 {[%clk 0:03:39.5]} 23... Bxf5 {[%clk
0:04:02.2]} 24. Rfb1 {[%clk 0:03:35.4]} 24... Re8 {[%clk 0:03:48.2]} 25. Rxb6
{[%clk 0:03:30.8]} 25... Rxb6 {[%clk 0:03:46.8]} 26. Nxb6 {[%clk 0:03:28.8]}
26... Qe7 {[%clk 0:03:26]} 27. h4 {[%clk 0:03:20.5]} 27... Qe2 {[%clk
0:03:22.9]} 28. Qxe2 {[%clk 0:03:08.5]} 28... Rxe2 {[%clk 0:03:21.4]} 29. Bf1
{[%clk 0:03:07.9]} 29... Rd2 {[%clk 0:03:18.6]} 30. Rb3 {[%clk 0:03:06.2]} 30...
h5 {[%clk 0:03:03.8]} 31. Nd5 {[%clk 0:03:03.8]} 31... Kh7 {[%clk 0:02:57.3]}
32. Ne7 {[%clk 0:03:01.5]} 32... Bg4 {[%clk 0:02:52.1]} 33. Kg2 {[%clk
0:02:58.7]} 33... Bh6 {[%clk 0:02:48.9]} 34. Rb7 {[%clk 0:02:54.3]} 34... Be3
{[%clk 0:02:37]} 35. Nf5+ {[%clk 0:02:38.5]} 35... Kg8 {[%clk 0:02:34.8]} 36.
Ne7+ {[%clk 0:02:29.1]} 36... Kf7 {[%clk 0:02:23.8]} 37. Nd5+ {[%clk 0:02:15.2]}
37... Kf8 {[%clk 0:02:18.8]} 38. Nxe3 {[%clk 0:02:03.5]} 38... dxe3 {[%clk
0:02:17.4]} 39. Rb1 {[%clk 0:01:57.3]} 39... Rxf2+ {[%clk 0:02:14]} 40. Kg1
{[%clk 0:01:56.9]} 40... Rd2 {[%clk 0:02:07.4]} 41. Re1 {[%clk 0:01:54.4]} 41...
e2 {[%clk 0:02:01.5]} 42. Bg2 {[%clk 0:01:53.2]} 42... Rxd3 {[%clk 0:01:58.4]}
43. Kf2 {[%clk 0:01:52.7]} 43... Rd4 {[%clk 0:01:49.6]} 44. Bf3 {[%clk
0:01:44.8]} 44... Bxf3 {[%clk 0:01:36]} 45. Kxf3 {[%clk 0:01:44.7]} 45... Rxc4
{[%clk 0:01:34.6]} 46. Rxe2 {[%clk 0:01:43.3]} 46... Kf7 {[%clk 0:01:30.1]} 47.
Re5 {[%clk 0:01:32.3]} 47... Kf6 {[%clk 0:01:27.8]} 48. Rg5 {[%clk 0:01:28.5]}
48... Rc1 {[%clk 0:01:22.2]} 49. Ke4 {[%clk 0:01:27.4]} 49... Rc4+ {[%clk
0:01:18.1]} 50. Kd5 {[%clk 0:01:24.7]} 50... Rc1 {[%clk 0:01:06.7]} 51. Ke4
{[%clk 0:01:23.5]} 51... c4 {[%clk 0:00:50.1]} 52. Kd4 {[%clk 0:01:21.5]} 52...
Rf1 {[%clk 0:00:38.4]} 53. Rc5 {[%clk 0:01:06.2]} 53... Rf3 {[%clk 0:00:33.9]}
54. Rxc4 {[%clk 0:00:56.1]} 54... Rxg3 {[%clk 0:00:32.4]} 55. Kd5 {[%clk
0:00:55.7]} 55... Rg4 {[%clk 0:00:29.3]} 56. Rc1 {[%clk 0:00:38.2]} 56... Rxh4
{[%clk 0:00:28.1]} 57. Rg1 {[%clk 0:00:37.3]} 57... Ra4 {[%clk 0:00:26.5]} 58.
Kc5 {[%clk 0:00:34.8]} 58... g5 {[%clk 0:00:25.3]} 59. Kd5 {[%clk 0:00:33.7]}
59... h4 {[%clk 0:00:23.9]} 60. Rf1+ {[%clk 0:00:32.5]} 60... Kg6 {[%clk
0:00:22.7]} 61. Ke5 {[%clk 0:00:32.4]} 61... h3 {[%clk 0:00:21.3]} 62. Rh1
{[%clk 0:00:29.6]} 62... g4 {[%clk 0:00:19.6]} 63. Rg1 {[%clk 0:00:28.1]} 63...
Kg5 {[%clk 0:00:18.5]} 64. Rd1 {[%clk 0:00:26.6]} 64... h2 {[%clk 0:00:16.7]}
65. Rd8 {[%clk 0:00:26.5]} 65... Ra1 {[%clk 0:00:13.8]} 66. Rg8+ {[%clk
0:00:26.4]} 66... Kh4 {[%clk 0:00:12.7]} 67. Rh8+ {[%clk 0:00:26.3]} 67... Kg3
{[%clk 0:00:11.8]} 68. Rb8 {[%clk 0:00:25.3]} 68... h1=Q {[%clk 0:00:09.9]} 69.
Rb3+ {[%clk 0:00:25.2]} 69... Kh4 {[%clk 0:00:08.8]} 70. Rb4 {[%clk 0:00:24.2]}
70... Qe1+ {[%clk 0:00:07]} 71. Kf5 {[%clk 0:00:22.5]} 71... Qxb4 {[%clk
0:00:05.8]} 72. Ke6 {[%clk 0:00:22.4]} 72... Ra6+ {[%clk 0:00:04.5]} 73. Kd5
{[%clk 0:00:22.3]} 73... Ra5+ {[%clk 0:00:03.6]} 74. Kc6 {[%clk 0:00:21.2]}
74... Qb5+ {[%clk 0:00:02.5]} 75. Kd6 {[%clk 0:00:20.3]} 75... Qb6+ {[%clk
0:00:01.6]} 76. Ke7 {[%clk 0:00:19.2]} 76... Ra7+ {[%clk 0:00:00.7]} 77. Ke8
{[%clk 0:00:18.2]} 1/2-1/2

[Event "Live Chess"]
[Site "Chess.com"]
[Date "2023.05.21"]
[Round "-"]
[White "Abde2012"]
[Black "f4nomore"]
[Result "0-1"]
[WhiteElo "751"]
[BlackElo "1403"]
[TimeControl "300"]
[EndTime "3:54:18 PDT"]
[Termination "f4nomore won by resignation"]

1. d4 {[%clk 0:04:54.7]} 1... g6 {[%clk 0:04:55.9]} 2. c4 {[%clk 0:04:50.3]}
2... Bg7 {[%clk 0:04:54.9]} 3. e3 {[%clk 0:04:44.9]} 3... d6 {[%clk 0:04:54.1]}
4. g3 {[%clk 0:04:42]} 4... Nf6 {[%clk 0:04:50.6]} 5. Bg2 {[%clk 0:04:41.4]}
5... O-O {[%clk 0:04:43.9]} 6. Ne2 {[%clk 0:04:40.7]} 6... c6 {[%clk 0:04:42.8]}
7. Nbc3 {[%clk 0:04:39.3]} 7... Bd7 {[%clk 0:04:41.6]} 8. d5 {[%clk 0:04:37.5]}
8... c5 {[%clk 0:04:39.4]} 9. b3 {[%clk 0:04:33.9]} 9... Qc8 {[%clk 0:04:38.4]}
10. Ba3 {[%clk 0:04:32.5]} 10... Bh3 {[%clk 0:04:35.4]} 11. Bf3 {[%clk
0:04:21.6]} 11... Bg4 {[%clk 0:04:27]} 12. Bg2 {[%clk 0:04:17.4]} 12... Nh5
{[%clk 0:04:19.8]} 13. Nf4 {[%clk 0:04:12]} 13... Bxc3+ {[%clk 0:04:14]} 14. Kf1
{[%clk 0:04:05.8]} 14... Bxd1 {[%clk 0:04:11.6]} 15. Rxd1 {[%clk 0:03:51.6]}
15... Nxf4 {[%clk 0:04:07.7]} 16. exf4 {[%clk 0:03:48.8]} 0-1

[Event "Live Chess"]
[Site "Chess.com"]
[Date "2023.05.21"]
[Round "-"]
[White "seasidecastle27"]
[Black "wot-not"]
[Result "1-0"]
[WhiteElo "1865"]
[BlackElo "1575"]
[TimeControl "300"]
[EndTime "3:54:26 PDT"]
[Termination "seasidecastle27 won on time"]

1. d4 {[%clk 0:04:58.9]} 1... Nf6 {[%clk 0:04:58]} 2. Nf3 {[%clk 0:04:58.1]}
2... g6 {[%clk 0:04:57.4]} 3. Bg5 {[%clk 0:04:55.4]} 3... Bg7 {[%clk 0:04:53.7]}
4. Nbd2 {[%clk 0:04:54.4]} 4... O-O {[%clk 0:04:52.5]} 5. e4 {[%clk 0:04:53.3]}
5... d6 {[%clk 0:04:50.1]} 6. Bd3 {[%clk 0:04:51.5]} 6... Bg4 {[%clk 0:04:46.3]}
7. h3 {[%clk 0:04:49.6]} 7... Bxf3 {[%clk 0:04:45.3]} 8. Qxf3 {[%clk 0:04:48]}
8... Nbd7 {[%clk 0:04:43.5]} 9. c3 {[%clk 0:04:46.4]} 9... e5 {[%clk 0:04:42.7]}
10. O-O {[%clk 0:04:37.6]} 10... c5 {[%clk 0:04:31.4]} 11. dxc5 {[%clk
0:04:27.9]} 11... Nxc5 {[%clk 0:04:26.3]} 12. Bc2 {[%clk 0:04:26.1]} 12... h6
{[%clk 0:04:21.4]} 13. Bh4 {[%clk 0:04:14.2]} 13... g5 {[%clk 0:04:20.2]} 14.
Bg3 {[%clk 0:04:12.7]} 14... Qb6 {[%clk 0:04:10]} 15. Nc4 {[%clk 0:04:09.1]}
15... Qc6 {[%clk 0:04:04.8]} 16. Rfe1 {[%clk 0:03:53.2]} 16... b5 {[%clk
0:03:57.9]} 17. Na5 {[%clk 0:03:43.6]} 17... Qb6 {[%clk 0:03:39.8]} 18. b4
{[%clk 0:03:41.7]} 18... Nb7 {[%clk 0:03:36.2]} 19. Nxb7 {[%clk 0:03:33]} 19...
Qxb7 {[%clk 0:03:35.2]} 20. Rad1 {[%clk 0:03:30.9]} 20... Qa6 {[%clk 0:03:18.9]}
21. Bb3 {[%clk 0:03:25.1]} 21... Rac8 {[%clk 0:03:05.9]} 22. Rd3 {[%clk
0:03:22.6]} 22... Qc6 {[%clk 0:02:52.9]} 23. Ree3 {[%clk 0:02:41.6]} 23... Rfd8
{[%clk 0:02:31.4]} 24. Qd1 {[%clk 0:02:35]} 24... a6 {[%clk 0:01:54.2]} 25. Bxe5
{[%clk 0:02:30.5]} 25... Qa8 {[%clk 0:01:31.6]} 26. Rxd6 {[%clk 0:02:16.2]}
26... Rxd6 {[%clk 0:01:26.8]} 27. Qxd6 {[%clk 0:02:09.4]} 27... Nxe4 {[%clk
0:01:19.7]} 28. Qe7 {[%clk 0:02:01.6]} 28... Rf8 {[%clk 0:00:34.7]} 29. Bxg7
{[%clk 0:01:58.4]} 29... Kxg7 {[%clk 0:00:33.2]} 30. Rxe4 {[%clk 0:01:53.9]}
30... Qc8 {[%clk 0:00:21.5]} 31. Qe5+ {[%clk 0:01:45.7]} 31... Kg8 {[%clk
0:00:19.3]} 32. Re3 {[%clk 0:01:39]} 32... Qd8 {[%clk 0:00:18]} 33. Qe4 {[%clk
0:01:30.8]} 33... Qd1+ {[%clk 0:00:16.3]} 34. Kh2 {[%clk 0:01:28.3]} 34... Qd6+
{[%clk 0:00:15.8]} 35. g3 {[%clk 0:01:25.5]} 35... Qd1 {[%clk 0:00:14.1]} 36.
Qg6+ {[%clk 0:01:21.7]} 36... Kh8 {[%clk 0:00:11.4]} 37. Qxh6+ {[%clk
0:01:20.8]} 37... Kg8 {[%clk 0:00:10.4]} 38. Qxg5+ {[%clk 0:01:19.7]} 38... Kh8
{[%clk 0:00:09.8]} 39. Re5 {[%clk 0:01:10.2]} 39... Qf3 {[%clk 0:00:05.5]} 40.
Qh4+ {[%clk 0:01:07.2]} 40... Kg7 {[%clk 0:00:03.9]} 41. Rg5+ {[%clk 0:01:04.5]}
41... Kf6 {[%clk 0:00:02]} 42. Qf4+ {[%clk 0:01:00.7]} 42... Qxf4 {[%clk
0:00:00.7]} 43. gxf4 {[%clk 0:00:59.3]} 1-0